fUST/lending_fUST_20250616
["ID","MTS","AMOUNT","RATE_DAILY","PERIOD"]
[366112727,1750069844813,-578.65,0.00022191,4]
[366112729,1750069844822,-460.0,0.00022191,4]
[366112731,1750069844833,-460.0,0.00022191,4]
[366112733,1750069844844,-460.0,0.00022191,4]
[366112735,1750069844853,-460.0,0.00022191,4]
[366112737,1750069844863,-460.0,0.00022191,4]
[366112739,1750069844873,-460.0,0.00022191,4]
[366112741,1750069844882,-460.0,0.00022191,4]
[366112743,1750069844892,-460.0,0.00022191,4]
[366112745,1750069844902,-460.0,0.00022191,4]
[366112747,1750069844911,-400.00545505,0.00022191,4]
[366112749,1750069844921,-460.0,0.00022191,4]
[366112751,1750069844930,-460.0,0.00022191,4]
[366112753,1750069844940,-460.0,0.00022191,4]
[366112755,1750069844950,-639.45,0.00022191,4]
[366112757,1750069844960,-460.0,0.00022191,4]
[366112758,1750069844970,-460.0,0.00022191,4]
[366112760,1750069844980,-476.82429389,0.00022191,4]
[366112762,1750069844990,-460.0,0.00022191,4]
[366112764,1750069845001,-607.7789417,0.00022191,4]
[366112766,1750069845011,-410.0,0.00022191,4]
[366112768,1750069845020,-460.0,0.00022191,4]
[366112770,1750069845030,-290.61478748,0.00022191,4]
[366112773,1750069845045,-321.3940502,0.00022191,4]
[366112774,1750069845054,-444.12366532,0.00022191,4]
[366112775,1750069845063,-1660.77,0.00022191,4]
[366112776,1750069845074,-460.0,0.00022191,4]
[366112777,1750069845083,-460.0,0.00022191,4]
[366112778,1750069845092,-460.0,0.00022191,4]
[366112779,1750069845103,-460.0,0.00022191,4]
[366112780,1750069845113,-460.0,0.00022191,4]
[366112781,1750069845123,-460.0,0.00022191,4]
[366112782,1750069845133,-460.0,0.00022191,4]
[366112783,1750069845143,-460.0,0.00022191,4]
[366112784,1750069845151,-382.05453192,0.00022191,4]
[366112785,1750069845160,-1163.95,0.00022191,4]
[366112786,1750069845169,-460.0,0.00022191,4]
[366112787,1750069845178,-460.0,0.00022191,4]
[366112788,1750069845188,-460.0,0.00022191,4]
[366112789,1750069845198,-460.0,0.00022191,4]
[366112790,1750069845206,-460.0,0.00022191,4]
[366112791,1750069845215,-529.34,0.00022191,4]
[366112792,1750069845225,-460.0,0.00022191,4]
[366112793,1750069845234,-601.74,0.00022191,4]
[366112794,1750069845244,-460.0,0.00022191,4]
[366112796,1750069845253,-448.35475207,0.00022191,4]
[366112798,1750069845263,-169.35273959,0.00022191,4]
[366112800,1750069845272,-460.0,0.00022191,4]
[366112802,1750069845282,-460.0,0.00022191,4]
[366112804,1750069845291,-460.0,0.00022191,4]
[366112806,1750069845300,-155.01104232,0.00022191,4]
[366112808,1750069845310,-460.0,0.00022191,4]
[366112810,1750069845319,-460.0,0.00022191,4]
[366112812,1750069845329,-460.0,0.00022191,4]
[366112814,1750069845338,-1116.87,0.00022191,4]
[366112816,1750069845348,-426.02649259,0.00022191,4]
[366112817,1750069845357,-460.0,0.00022191,4]
[366112819,1750069845366,-460.0,0.00022191,4]
[366112821,1750069845375,-346.31845381,0.00022191,4]
[366112823,1750069845385,-460.0,0.00022191,4]
[366112825,1750069845395,-460.0,0.00022191,4]
[366112827,1750069845405,-460.0,0.00022191,4]
[366112829,1750069845414,-460.0,0.00022191,4]
[366112831,1750069845423,-442.58219069,0.00022191,4]
[366112833,1750069845433,-359.43802307,0.00022191,4]
[366112835,1750069845443,-460.0,0.00022191,4]
[366112837,1750069845453,-460.0,0.00022191,4]
[366112839,1750069845462,-460.0,0.00022191,4]
[366112841,1750069845472,-197.06690157,0.000222,69]
[366112843,1750069845482,-515.0,0.0002226,2]
[366112845,1750069845491,-647.78928677,0.00022279,6]
[366112847,1750069845501,-1000.0,0.00022304,5]
[366112849,1750069845511,-4787.01,0.00022319,2]
[366112851,1750069845524,-326.02510543,0.00022415,2]
[366112853,1750069845533,-222.24507458,0.00022465,4]
[366112855,1750069845543,-151.0,0.00022465,7]
[366112857,1750069845552,-151.0,0.00022465,7]
[366112859,1750069845563,-460.0,0.00022465,4]
[366112861,1750069845572,-460.0,0.00022465,4]
[366112863,1750069845582,-565.7532755,0.00022465,4]
[366112865,1750069845591,-255.88008586,0.00022465,4]
[366112867,1750069845601,-460.0,0.00022465,4]
[366112869,1750069845610,-460.0,0.00022465,4]
[366112871,1750069845620,-460.0,0.00022465,4]
[366112873,1750069845629,-460.0,0.00022465,4]
[366112875,1750069845638,-460.0,0.00022465,2]
[366112877,1750069845649,-398.51798065,0.00022465,4]
[366112879,1750069845658,-460.0,0.00022465,4]
[366112881,1750069845668,-460.0,0.00022465,4]
[366112883,1750069845677,-440.0,0.00022465,4]
[366112885,1750069845687,-420.0,0.00022465,4]
[366112887,1750069845697,-596.61728574,0.00022465,4]
[366112889,1750069845708,-460.0,0.00022465,4]
[366112891,1750069845719,-440.0,0.00022465,4]
[366112893,1750069845731,-460.0,0.00022465,4]
[366112895,1750069845740,-230.4784662,0.00022465,4]
[366112897,1750069845750,-460.0,0.00022465,4]
[366112899,1750069845759,-460.0,0.00022465,4]
[366112900,1750069845769,-554.15,0.00022465,2]
[366112902,1750069845778,-460.0,0.00022465,4]
[366112905,1750069845789,-460.0,0.00022465,4]
[366112907,1750069845799,-460.0,0.00022465,4]
[366112908,1750069845808,-370.0,0.00022465,4]
[366112910,1750069845818,-460.0,0.00022465,4]
[366112912,1750069845828,-411.50000349,0.00022465,4]
[366112914,1750069845837,-541.02,0.00022465,4]
[366112916,1750069845847,-460.0,0.00022465,4]
[366112918,1750069845856,-460.0,0.00022465,4]
[366112920,1750069845866,-460.0,0.00022465,4]
[366112922,1750069845875,-460.0,0.00022465,4]
[366112924,1750069845884,-460.0,0.00022465,4]
[366112926,1750069845894,-460.0,0.00022465,4]
[366112928,1750069845903,-460.0,0.00022465,4]
[366112930,1750069845914,-440.0,0.00022465,4]
[366112932,1750069845923,-460.0,0.00022465,4]
[366112934,1750069845933,-460.0,0.00022465,4]
[366112936,1750069845944,-1550.75,0.00022465,4]
[366112938,1750069845954,-460.0,0.00022465,4]
[366112940,1750069845964,-460.0,0.00022465,4]
[366112942,1750069845974,-460.0,0.00022465,4]
[366112944,1750069845984,-295.19901499,0.00022465,4]
[366112946,1750069845993,-297.76637113,0.00022465,4]
[366112948,1750069846002,-460.0,0.00022465,4]
[366112950,1750069846013,-460.0,0.00022465,4]
[366112952,1750069846022,-460.0,0.00022465,4]
[366112954,1750069846034,-460.0,0.00022465,4]
[366112956,1750069846044,-460.0,0.00022465,4]
[366112957,1750069846053,-1002.27,0.00022465,4]
[366112959,1750069846064,-442.41300366,0.00022465,4]
[366112961,1750069846074,-314.38222581,0.00022465,4]
[366112963,1750069846084,-264.61606098,0.00022465,4]
[366112965,1750069846095,-460.0,0.00022465,4]
[366112967,1750069846106,-460.0,0.00022465,4]
[366112969,1750069846119,-1392.3,0.00022465,4]
[366112971,1750069846130,-223.76340779,0.00022465,4]
[366112973,1750069846140,-430.0,0.00022465,4]
[366112975,1750069846150,-460.0,0.00022465,4]
[366112977,1750069846160,-460.0,0.00022465,4]
[366112979,1750069846170,-460.0,0.00022465,4]
[366112981,1750069846180,-1648.77,0.00022465,4]
[366112983,1750069846192,-460.0,0.00022465,4]
[366112985,1750069846201,-1163.05,0.00022465,4]
[366112987,1750069846212,-460.0,0.00022465,4]
[366112989,1750069846222,-460.0,0.00022465,4]
[366112991,1750069846232,-460.0,0.00022465,4]
[366112993,1750069846241,-460.0,0.00022465,4]
[366112995,1750069846252,-460.0,0.00022465,4]
[366112997,1750069846261,-573.38,0.00022465,4]
[366112998,1750069846270,-460.0,0.00022465,4]
[366113000,1750069846280,-460.0,0.00022465,4]
[366113002,1750069846290,-685.17,0.00022465,4]
[366113004,1750069846300,-460.0,0.00022465,4]
[366113006,1750069846310,-460.0,0.00022465,4]
[366113009,1750069846323,-460.0,0.00022465,4]
[366113019,1750069846426,-502.47385473,0.00022465,4]
[366113021,1750069846435,-460.0,0.00022465,4]
[366113023,1750069846447,-460.0,0.00022465,4]
[366113025,1750069846456,-460.0,0.00022465,4]
[366113027,1750069846466,-460.0,0.00022465,4]
[366113029,1750069846476,-694.47,0.00022465,4]
[366113031,1750069846486,-460.0,0.00022465,4]
[366113033,1750069846496,-460.0,0.00022465,4]
[366113035,1750069846507,-460.0,0.00022465,4]
[366113037,1750069846516,-460.0,0.00022465,4]
[366113039,1750069846526,-460.0,0.00022465,4]
[366113041,1750069846535,-460.0,0.00022465,4]
[366113043,1750069846545,-540.06800521,0.00022465,4]
[366113045,1750069846555,-460.0,0.00022465,4]
[366113047,1750069846565,-460.0,0.00022465,4]
[366113049,1750069846577,-460.0,0.00022465,4]
[366113051,1750069846588,-460.0,0.00022465,4]
[366113053,1750069846597,-460.0,0.00022465,4]
[366113055,1750069846607,-460.0,0.00022465,4]
[366113057,1750069846617,-460.0,0.00022465,4]
[366113059,1750069846627,-420.0,0.00022465,4]
[366113061,1750069846637,-484.83,0.00022465,4]
[366113063,1750069846646,-578.65,0.00022465,4]
[366113065,1750069846656,-460.0,0.00022465,4]
[366113067,1750069846666,-320.0,0.00022465,4]
[366113069,1750069846675,-460.0,0.00022465,4]
[366113071,1750069846685,-460.0,0.00022465,4]
[366113073,1750069846695,-460.0,0.00022465,4]
[366113075,1750069846706,-460.0,0.00022465,4]
[366113077,1750069846715,-460.0,0.00022465,4]
[366113079,1750069846725,-460.0,0.00022465,4]
[366113081,1750069846735,-460.0,0.00022465,4]
[366113083,1750069846744,-460.0,0.00022465,4]
[366113085,1750069846754,-460.0,0.00022465,4]
[366113087,1750069846763,-460.0,0.00022465,4]
[366113088,1750069846773,-639.45,0.00022465,4]
[366113090,1750069846782,-301.495167,0.00022465,4]
[366113092,1750069846792,-460.0,0.00022465,4]
[366113094,1750069846801,-460.0,0.00022465,4]
[366113097,1750069846812,-460.0,0.00022465,4]
[366113098,1750069846822,-1660.77,0.00022465,4]
[366113100,1750069846832,-229.83376739,0.00022465,4]
[366113102,1750069846842,-460.0,0.00022465,4]
[366113104,1750069846851,-460.0,0.00022465,4]
[366113106,1750069846861,-460.0,0.00022465,4]
[366113108,1750069846870,-460.0,0.00022465,4]
[366113110,1750069846880,-460.0,0.00022465,4]
[366113112,1750069846889,-460.0,0.00022465,4]
[366113114,1750069846899,-372.79298343,0.00022465,4]
[366113116,1750069846909,-1163.95,0.00022465,4]
[366113118,1750069846918,-403.81699889,0.00022465,4]
[366113120,1750069846929,-460.0,0.00022465,4]
[366113122,1750069846939,-460.0,0.00022465,4]
[366113125,1750069846949,-460.0,0.00022465,4]
[366113127,1750069846959,-460.0,0.00022465,4]
[366113129,1750069846968,-529.34,0.00022465,4]
[366113131,1750069846978,-460.0,0.00022465,4]
[366113133,1750069846988,-601.74,0.00022465,4]
[366113135,1750069846997,-460.0,0.00022465,4]
[366113136,1750069847006,-460.0,0.00022465,4]
[366113138,1750069847016,-338.04500064,0.00022465,4]
[366113140,1750069847026,-460.0,0.00022465,4]
[366113142,1750069847038,-460.0,0.00022465,4]
[366113144,1750069847048,-460.0,0.00022465,4]
[366113145,1750069847057,-460.0,0.00022465,4]
[366113147,1750069847067,-1116.87,0.00022465,4]
[366113149,1750069847077,-460.0,0.00022465,4]
[366113151,1750069847087,-460.0,0.00022465,4]
[366113153,1750069847096,-460.0,0.00022465,4]
[366113155,1750069847106,-460.0,0.00022465,4]
[366113157,1750069847118,-460.0,0.00022465,4]
[366113159,1750069847128,-427.01416206,0.00022465,4]
[366113161,1750069847138,-355.0,0.00022465,4]
[366113163,1750069847148,-460.0,0.00022465,4]
[366113165,1750069847158,-4053.77327036,0.00022473,2]
[366113167,1750069847168,-500.0,0.00022517,2]
[366113169,1750069847178,-1000.0,0.00022521,2]
[366113171,1750069847189,-170.95106144,0.00022521,2]
[366113173,1750069847199,-500.0,0.00022521,2]
[366113175,1750069847208,-500.0,0.00022521,2]
[366113177,1750069847218,-500.0,0.00022521,2]
[366113178,1750069847227,-647.78928677,0.00022521,7]
[366113180,1750069847237,-653.0,0.00022615,2]
[366113182,1750069847247,-2160.0,0.00022615,2]
[366113184,1750069847257,-465.621,0.00022615,2]
[366113186,1750069847267,-964.0,0.00022615,2]
[366113188,1750069847277,-151.0,0.00022739,7]
[366113190,1750069847286,-229.195013,0.00022739,7]
[366113192,1750069847297,-154.652528,0.00022739,7]
[366113194,1750069847308,-458.16785353,0.00022739,4]
[366113196,1750069847318,-460.0,0.00022739,4]
[366113198,1750069847328,-460.0,0.00022739,4]
[366113200,1750069847338,-460.0,0.00022739,4]
[366113202,1750069847348,-460.0,0.00022739,4]
[366113204,1750069847358,-460.0,0.00022739,4]
[366113206,1750069847368,-460.0,0.00022739,2]
[366113208,1750069847377,-460.0,0.00022739,4]
[366113210,1750069847387,-171.88158986,0.00022739,4]
[366113212,1750069847397,-460.0,0.00022739,4]
[366113214,1750069847407,-460.0,0.00022739,4]
[366113216,1750069847417,-253.48584117,0.00022739,4]
[366113218,1750069847426,-554.15,0.00022739,2]
[366113220,1750069847437,-553.82954701,0.00022739,4]
[366113221,1750069847447,-460.0,0.00022739,4]
[366113223,1750069847457,-448.13687165,0.00022739,4]
[366113225,1750069847467,-218.7452064,0.00022739,4]
[366113227,1750069847477,-541.02,0.00022739,4]
[366113229,1750069847486,-460.0,0.00022739,4]
[366113231,1750069847496,-196.03051896,0.00022739,4]
[366113233,1750069847506,-405.9387443,0.00022739,4]
[366113235,1750069847516,-460.0,0.00022739,4]
[366113237,1750069847526,-460.0,0.00022739,4]
[366113239,1750069847538,-460.0,0.00022739,4]
[366113241,1750069847548,-327.91689717,0.00022739,4]
[366113243,1750069847558,-460.0,0.00022739,4]
[366113245,1750069847567,-1550.75,0.00022739,4]
[366113246,1750069847577,-460.0,0.00022739,4]
[366113248,1750069847587,-567.46870541,0.00022739,4]
[366113250,1750069847598,-306.73726303,0.00022739,4]
[366113252,1750069847607,-460.0,0.00022739,4]
[366113254,1750069847617,-460.0,0.00022739,4]
[366113256,1750069847627,-1002.27,0.00022739,4]
[366113258,1750069847637,-460.0,0.00022739,4]
[366113260,1750069847647,-440.0,0.00022739,4]
[366113262,1750069847657,-1392.3,0.00022739,4]
[366113264,1750069847667,-460.0,0.00022739,4]
[366113266,1750069847678,-460.0,0.00022739,4]
[366113267,1750069847687,-460.0,0.00022739,4]
[366113268,1750069847697,-1648.77,0.00022739,4]
[366113269,1750069847706,-460.0,0.00022739,4]
[366113270,1750069847716,-228.44423529,0.00022739,4]
[366113271,1750069847898,-901.7080063,0.00019056,2]
[366113272,1750069847908,-901.70800626,0.00019897,2]
[366113273,1750069847919,-460.0,0.00021917,4]
[366113274,1750069847929,-460.0,0.00021917,4]
[366113275,1750069847939,-460.0,0.00021917,4]
[366113276,1750069847950,-460.0,0.00022191,4]
[366113277,1750069847959,-460.0,0.00022191,4]
[366113278,1750069847969,-202.7051326,0.00022191,4]
[366113279,1750069847978,-934.60576471,0.00022739,4]
[366113280,1750069848084,-460.0,0.00022739,4]
[366113281,1750069848096,-460.0,0.00022739,4]
[366113282,1750069848106,-460.0,0.00022739,4]
[366113283,1750069848118,-460.0,0.00022739,4]
[366113284,1750069848128,-460.0,0.00022739,4]
[366113285,1750069848137,-573.38,0.00022739,4]
[366113287,1750069848148,-460.0,0.00022739,4]
[366113289,1750069848158,-165.68868608,0.00022739,4]
[366113291,1750069848168,-298.98907494,0.00022739,4]
[366113296,1750069848211,500.0,0.00017999,2]
[366113301,1750069848252,500.0,0.00017999,2]
[366113306,1750069848293,500.0,0.00017999,2]
[366113311,1750069848337,500.0,0.00017999,2]
[366113323,1750069848469,500.0,0.00017999,2]
[366113328,1750069848508,500.0,0.00017999,2]
[366113332,1750069848544,500.0,0.00017999,2]
[366113337,1750069848592,500.0,0.00017999,2]
[366113344,1750069848653,535.87282639,0.00017999,2]
[366113360,1750069848823,500.0,0.00017999,2]
[366113363,1750069848844,-844.83865785,0.00018865,2]
[366113365,1750069848854,-599.68435536,0.00019178,2]
[366113367,1750069848864,-500.0,0.00019178,2]
[366113369,1750069848873,-500.0,0.00019178,2]
[366113371,1750069848892,-500.0,0.00019178,2]
[366113374,1750069848911,-500.0,0.00019178,2]
[366113376,1750069848925,-500.0,0.00019178,2]
[366113379,1750069848941,-500.0,0.00019178,2]
[366113381,1750069848957,-500.0,0.00019178,2]
[366113384,1750069848974,-500.0,0.00019178,2]
[366113387,1750069848991,-500.0,0.00019178,2]
[366113389,1750069849009,-500.0,0.00019178,2]
[366113392,1750069849026,-500.0,0.00019178,2]
[366113394,1750069849043,-500.0,0.00019178,2]
[366113396,1750069849059,-500.0,0.00019178,2]
[366113399,1750069849075,-500.0,0.00019178,2]
[366113401,1750069849091,-500.0,0.00019178,2]
[366113403,1750069849107,-500.0,0.00019178,2]
[366113406,1750069849120,-296.45329674,0.00019178,2]
[366113408,1750069849134,-500.0,0.00019178,2]
[366113410,1750069849150,-500.0,0.00019178,2]
[366113413,1750069849166,-500.0,0.00019178,2]
[366113415,1750069849182,-150.59508982,0.00019178,2]
[366113419,1750069849211,-349.40491018,0.00019178,2]
[366113421,1750069849226,-901.70800626,0.00020739,2]
[366113423,1750069849238,-718.53708356,0.0002158,2]
[366113832,1750069862433,500.0,0.00017999,2]
[366113833,1750069862789,500.0,0.00017999,2]
[366113834,1750069862854,500.0,0.00017999,2]
[366113835,1750069862899,484.15675473,0.00017999,2]
[366113839,1750069905064,500.0,0.00017999,2]
[366113840,1750069908779,168.222499,0.00013699,2]
[366113841,1750069920940,500.0,0.00017999,2]
[366113842,1750069920972,500.0,0.00017999,2]
[366113843,1750069921007,425.3457991,0.00017999,2]
[366113844,1750069921039,324.37564347,0.00017999,2]
[366113845,1750069921395,185.63325795,0.00017999,2]
[366113846,1750069925646,507.93420811,0.00017999,2]
[366113847,1750069927701,500.0,0.00017999,2]
[366113848,1750069950223,500.0,0.00017999,2]
[366113849,1750069950256,631.83087803,0.00017999,2]
[366113857,1750070334933,418.243,0.0002465,120]
[366113858,1750070531009,277.21073822,0.00017988,2]
[366113861,1750070599922,2188.0,0.00024657,120]
[366113862,1750070627032,152.34,0.00025039,60]
[366113865,1750070701821,851.88,0.00025039,60]
[366113867,1750070988143,168.543536,0.00013699,2]
[366113876,1750071032654,-1000.0,0.00018088,2]
[366113878,1750071032664,-1000.0,0.00019154,2]
[366113879,1750071032674,-1000.0,0.00019155,2]
[366113880,1750071032683,-184.0604359,0.00019178,2]
[366113881,1750071032692,-480.0,0.00019274,2]
[366113882,1750071032702,-300.0,0.00019275,2]
[366113885,1750071032882,-300.0,0.00019275,2]
[366113886,1750071032892,-644.0503663,0.00019275,2]
[366113888,1750071032902,-500.0,0.00019275,2]
[366113890,1750071032913,-2517.4686787,0.00019276,2]
[366113897,1750071032963,-10168.52622218,0.00019276,2]
[366113901,1750071032975,-5481.47416537,0.00019276,2]
[366113903,1750071032986,-5000.0,0.00019276,2]
[366113908,1750071032996,-207.4,0.00019276,2]
[366113911,1750071033017,-505.95926792,0.00019285,2]
[366113913,1750071033030,-500.0,0.00019285,2]
[366113916,1750071033041,-505.95926792,0.00019285,2]
[366113919,1750071033053,-370.57744535,0.00019285,2]
[366113922,1750071033063,-505.95926792,0.00019285,2]
[366113924,1750071033074,-505.95926792,0.00019285,2]
[366113926,1750071033085,-505.95926792,0.00019285,2]
[366113928,1750071033096,-505.95926792,0.00019285,2]
[366113930,1750071033106,-505.95926792,0.00019285,2]
[366113932,1750071033117,-505.95926792,0.00019285,2]
[366113934,1750071033128,-505.95926792,0.00019285,2]
[366113937,1750071033138,-505.95926792,0.00019285,2]
[366113938,1750071033147,-505.95926792,0.00019285,2]
[366113941,1750071033158,-505.95926792,0.00019285,2]
[366113943,1750071033169,-24900.0,0.00019288,2]
[366113944,1750071033180,-1816.41524405,0.00019342,2]
[366113946,1750071033191,-195.76090948,0.000198,2]
[366113948,1750071033202,-160.0,0.00019907,2]
[366113949,1750071033213,-1563.0,0.00019941,2]
[366113950,1750071033223,-1000.0,0.00019999,2]
[366113951,1750071033235,-568.46773987,0.00019999,2]
[366113954,1750071033246,-1133.43803939,0.0002,2]
[366113955,1750071033256,-3300.0,0.0002,2]
[366113957,1750071033267,-621.35584132,0.0002,2]
[366113959,1750071033279,-1558.35,0.00020324,2]
[366113961,1750071033290,-160.0,0.00020353,2]
[366113963,1750071033300,-160.0,0.00020379,2]
[366113965,1750071033311,-424.54874296,0.00020379,2]
[366113967,1750071033322,-12537.89035583,0.00020379,2]
[366113969,1750071033333,-835.67987521,0.00020379,2]
[366113971,1750071033343,-160.0,0.00020379,2]
[366113973,1750071033354,-213.36025772,0.00020379,2]
[366113975,1750071033364,-160.0,0.00020379,2]
[366113977,1750071033375,-160.0,0.00020379,2]
[366113979,1750071033386,-845.4146947,0.00020379,2]
[366113981,1750071033396,-160.0,0.00020379,2]
[366113983,1750071033406,-160.0,0.00020379,2]
[366113985,1750071033417,-160.0,0.00020379,2]
[366113986,1750071033427,-151.0,0.00020381,2]
[366113988,1750071033437,-861.28079038,0.00020385,2]
[366113990,1750071033448,-160.0,0.00020385,2]
[366113991,1750071033463,-1000.0,0.00020385,2]
[366113992,1750071033474,-258.802,0.00020532,2]
[366113993,1750071033484,-215.0738,0.00020645,2]
[366113994,1750071033495,-568.46773987,0.00020823,2]
[366113995,1750071033507,-420.5387012,0.000209,4]
[366113996,1750071033517,-393.68,0.00020994,10]
[366113997,1750071033528,-420.0,0.00021004,2]
[366113998,1750071033540,-420.0,0.00021004,2]
[366113999,1750071033552,-420.53870109,0.00021072,4]
[366114000,1750071033563,-420.53870109,0.00021245,4]
[366114001,1750071033574,-3116.71,0.00021292,2]
[366114002,1750071033585,-420.53870109,0.00021417,5]
[366114003,1750071033595,-168.0,0.000215,2]
[366114004,1750071033606,-176.9937618,0.00021534,2]
[366114005,1750071033617,-153.0,0.00021534,2]
[366114006,1750071033628,-158.8714084,0.00021534,2]
[366114007,1750071033639,-573.7859869,0.00021534,2]
[366114008,1750071033649,-420.53870109,0.0002159,5]
[366114009,1750071033660,-320.23419093,0.00021605,2]
[366114010,1750071033671,-568.46773987,0.00021646,2]
[366114011,1750071033682,-160.0,0.00021755,2]
[366114012,1750071033693,-420.53870109,0.00021762,5]
[366114013,1750071033704,-941.2422845,0.00021817,2]
[366114014,1750071033714,-3145.24733252,0.00021817,2]
[366114015,1750071033725,-830.36645292,0.00021817,2]
[366114016,1750071033735,-168.0,0.00021838,2]
[366114017,1750071033746,-598.62,0.00021907,3]
[366114018,1750071033757,-412524.66388,0.00021916,2]
[366114019,1750071033767,-1000.0,0.00021916,2]
[366114020,1750071033778,-1000.0,0.00021916,2]
[366114021,1750071033788,-1000.0,0.00021916,2]
[366114022,1750071033799,-1000.0,0.00021916,2]
[366114023,1750071033809,-1000.0,0.00021916,2]
[366114024,1750071033819,-1000.0,0.00021916,2]
[366114025,1750071033830,-754.41072803,0.00021916,2]
[366114026,1750071033840,-460.0,0.00021917,4]
[366114027,1750071033850,-463.05038936,0.00021917,4]
[366114028,1750071033860,-460.0,0.00021917,4]
[366114029,1750071033870,-456.22131786,0.00021917,4]
[366114030,1750071033880,-460.0,0.00021917,4]
[366114031,1750071033891,-460.0,0.00021917,4]
[366114032,1750071033901,-460.0,0.00021917,4]
[366114033,1750071033912,-460.0,0.00021917,4]
[366114034,1750071033922,-460.0,0.00021917,4]
[366114035,1750071033932,-444.88283975,0.00021917,4]
[366114036,1750071033942,-463.36891371,0.00021917,4]
[366114037,1750071033953,-460.0,0.00021917,4]
[366114038,1750071033963,-237.07720742,0.00021917,4]
[366114039,1750071033974,-460.0,0.00021917,4]
[366114040,1750071033984,-461.33718649,0.00021917,4]
[366114041,1750071033994,-460.0,0.00021917,4]
[366114042,1750071034006,-460.0,0.00021917,4]
[366114043,1750071034016,-460.0,0.00021917,4]
[366114044,1750071034026,-325.09022019,0.00021917,4]
[366114045,1750071034036,-315.14053351,0.00021917,4]
[366114046,1750071034046,-161.99085637,0.00021917,4]
[366114047,1750071034056,-400.0,0.00021917,4]
[366114048,1750071034066,-460.0,0.00021917,4]
[366114049,1750071034076,-460.0,0.00021917,4]
[366114050,1750071034087,-460.0,0.00021917,4]
[366114051,1750071034097,-460.0,0.00021917,4]
[366114052,1750071034107,-382.64197562,0.00021917,4]
[366114053,1750071034117,-460.0,0.00021917,4]
[366114054,1750071034127,-460.0,0.00021917,4]
[366114055,1750071034137,-460.0,0.00021917,4]
[366114056,1750071034148,-460.0,0.00021917,4]
[366114057,1750071034158,-460.0,0.00021917,4]
[366114058,1750071034168,-460.0,0.00021917,4]
[366114059,1750071034178,-370.0,0.00021917,4]
[366114060,1750071034188,-460.0,0.00021917,4]
[366114061,1750071034198,-460.0,0.00021917,4]
[366114062,1750071034209,-370.42801445,0.00021917,4]
[366114063,1750071034219,-460.0,0.00021917,4]
[366114064,1750071034229,-402.56256613,0.00021917,4]
[366114065,1750071034239,-460.0,0.00021917,4]
[366114066,1750071034250,-219.86079993,0.00021917,4]
[366114067,1750071034260,-420.0,0.00021917,4]
[366114068,1750071034270,-463.60203802,0.00021917,4]
[366114069,1750071034281,-460.0,0.00021917,4]
[366114070,1750071034291,-406.72114268,0.00021917,4]
[366114071,1750071034302,-485.315503,0.00021917,4]
[366114072,1750071034312,-460.0,0.00021917,4]
[366114073,1750071034322,-432.00235868,0.00021917,4]
[366114074,1750071034332,-363.99610658,0.00021917,4]
[366114075,1750071034342,-460.0,0.00021917,4]